[Event "23rd Hoogeveen Open 2019"]
[Site "Hoogeveen"]
[Date "2019.10.26"]
[Round "9.34"]
[White "Van der Veen, Jan"]
[Black "Labruyere, Roger"]
[Result "0-1"]
[ECO "B52"]
[WhiteElo "2043"]
[BlackElo "1932"]
[Annotator "NA"]
[PlyCount "76"]
[EventDate "2019.10.19"]
[EventType "swiss"]
[EventCountry "NED"]
[SourceTitle "playchess.com"]
[Source "ChessBase"]
[SourceQuality "1"]
[TimeControl "40/5400+30:1800+30"]

1. e4 {[%emt 0:03:27]} c5 {[%emt 0:00:00]} 2. Nf3 {[%emt 0:00:08]} d6 {[%emt 0:00:00]} 3. Bb5+ {[%emt 0:00:06]} Bd7 {[%emt 0:00:00]} 4. Bxd7+ {[%emt 0:00:08]} Qxd7 {[%emt 0:00:00]} 5. O-O {[%emt 0:00:13]} Nc6 {[%emt 0:00:00]} 6. c3 {[%emt 0:00:18]} Nf6 {[%emt 0:00:00]} 7. Re1 {[%emt 0:00:34]} e6 {[%emt 0:00:25]} 8. d4 {[%emt 0:00:07]} cxd4 {[%emt 0:00:02]} 9. cxd4 {[%emt 0:00:06]} d5 {[%emt 0:00:03]} 10. e5 {[%emt 0:00:07]} Ne4 {[%emt 0:00:09]} 11. Nbd2 {[%emt 0:00:05]} Nxd2 {[%emt 0:00:07]} 12. Bxd2 {[%emt 0:00:05]} Be7 {[%emt 0:00:13]} 13. Bg5 {[%emt 0:00:58]} O-O {[%emt 0:01:55]} 14. Bxe7 {[%emt 0:01:22]} Qxe7 {[%emt 0:00:06]} 15. Re3 {[%emt 0:04:01] B52: Sicilian: Moscow Variation with 3...Bd7} (15. Qd2 Rfc8 16. a3 a5 17. Rac1 Qd8 18. Rc5 b6 19. Rc3 Ne7 20. Rd3 Qc7 21. Rc3 Qd7 22. Rb3 Rab8 {½-½ (62) Schneider,D (2477)-Riordan,C (2339) ICC INT 2012}) 15... Rac8 {[%emt 0:01:16]} 16. Rc1 {[%emt 0:05:07]} Na5 {[%emt 0:06:20]} 17. Rec3 {[%emt 0:09:08]} Rxc3 {[%emt 0:00:10]} 18. Rxc3 {[%emt 0:00:03]} Qb4 {[%emt 0:05:41]} 19. Qc1 {[%emt 0:14:43]} Nc6 $11 {[%emt 0:02:27]} ({Predecessor:} 19... h6 20. h3 b5 21. b3 a6 {1-0 (38) Ivekovic,B (1921)-Mikes,J (1815) Vung Tau 2008}) 20. a3 {[%emt 0:08:21]} Qb6 {[%emt 0:00:20]} 21. Qd2 {[%emt 0:06:19]} a5 {[%emt 0:00:13]} 22. b3 {[%emt 0:02:31]} h6 {[%emt 0:02:23]} 23. g3 {[%emt 0:02:14]} Na7 {[%emt 0:06:46]} 24. a4 {[%emt 0:12:27]} Nc6 {[%emt 0:00:12]} 25. Rd3 {[%emt 0:10:15]} Rc8 {[%emt 0:01:40]} 26. Rc3 {[%emt 0:03:44]} Qb4 {[%emt 0:01:28]} 27. Qb2 {[%emt 0:02:32]} Kf8 {[%emt 0:01:14]} 28. Rc5 {[%emt 0:03:00]} Qb6 {[%emt 0:00:58]} 29. Ne1 {[%emt 0:03:28]} Ke7 {[%emt 0:06:28]} 30. Kg2 {[%emt 0:03:51]} Kd7 {[%emt 0:02:04]} 31. Nd3 {[%emt 0:02:41]} Qa6 {[%emt 0:00:59]} 32. Rb5 {[%emt 0:02:11]} b6 {[%emt 0:01:30]} 33. Qa3 {[%emt 0:01:21]} Nxd4 {[%emt 0:07:59]} 34. Qd6+ {[%emt 0:00:03]} Ke8 {[%emt 0:00:07]} 35. Nc5 {[%emt 0:01:09]} Qa7 {[%emt 0:01:32]} 36. Rxb6 {[%emt 0:00:33]} Nf5 {[%emt 0:00:27]} 37. Nb7 {[%emt 0:00:33]} Nxd6 {[%emt 0:00:21]} 38. Nxd6+ {[%emt 0:00:06]} Kd7 {[%emt 0:05:00]} 0-1

[Event "23rd Hoogeveen Open 2019"]
[Site "Hoogeveen"]
[Date "2019.10.26"]
[Round "9.35"]
[White "Gijsen, William"]
[Black "Klaren, Duncan"]
[Result "1-0"]
[ECO "B90"]
[WhiteElo "2091"]
[BlackElo "1923"]
[Annotator "NA"]
[PlyCount "61"]
[EventDate "2019.10.19"]
[EventType "swiss"]
[EventCountry "NED"]
[SourceTitle "playchess.com"]
[Source "ChessBase"]
[SourceQuality "1"]
[TimeControl "40/5400+30:1800+30"]

1. e4 {[%emt 0:00:00]} c5 {[%emt 0:00:00]} 2. Nf3 {[%emt 0:00:00]} d6 {[%emt 0:00:00]} 3. d4 {[%emt 0:00:00]} cxd4 {[%emt 0:00:00]} 4. Nxd4 {[%emt 0:00:00]} Nf6 {[%emt 0:00:00]} 5. Nc3 {[%emt 0:00:00]} a6 {[%emt 0:00:00]} 6. Be3 {[%emt 0:01:32]} e5 {[%emt 0:00:00]} 7. Nb3 {[%emt 0:00:05]} Be6 {[%emt 0:00:00]} 8. Qd2 {[%emt 0:02:15]} Nbd7 {[%emt 0:00:34]} 9. f3 {[%emt 0:00:22]} Rc8 {[%emt 0:01:36]} 10. O-O-O {[%emt 0:02:44]} b5 {[%emt 0:01:41]} 11. g4 {[%emt 0:02:52]} Be7 {[%emt 0:03:22]} 12. Kb1 {[%emt 0:00:37]} O-O {[%emt 0:01:03]} 13. h4 {[%emt 0:00:23]} Nb6 {[%emt 0:01:14]} 14. Bg5 {[%emt 0:06:39]} b4 {[%emt 0:08:29]} 15. Bxf6 {[%emt 0:01:20]} Bxf6 {[%emt 0:00:36]} 16. Nd5 $14 {[%emt 0:00:08]} Bxd5 {[%emt 0:01:02]} 17. exd5 {[%emt 0:00:15]} Qc7 {[%emt 0:02:24]} 18. g5 {[%emt 0:01:52]} Be7 {[%emt 0:00:05]} 19. Bh3 {[%emt 0:06:44]} Rb8 {[%emt 0:19:01]} 20. Na5 {[%emt 0:02:40]} Nc4 {[%emt 0:00:06]} 21. Nxc4 {[%emt 0:00:06]} Qxc4 {[%emt 0:00:03]} 22. h5 {[%emt 0:00:36]} g6 {[%emt 0:04:55]} 23. hxg6 {[%emt 0:00:34]} hxg6 {[%emt 0:00:07]} 24. Rde1 {[%emt 0:05:02]} Qh4 {[%emt 0:03:08]} 25. Bg4 {[%emt 0:01:41]} Qxg5 {[%emt 0:00:23]} 26. Qh2 {[%emt 0:00:16]} Kg7 {[%emt 0:00:14]} 27. f4 {[%emt 0:10:03]} exf4 {[%emt 0:00:59]} 28. Qh7+ {[%emt 0:01:13]} Kf6 {[%emt 0:00:06]} 29. Be6 {[%emt 0:01:31]} fxe6 {[%emt 0:07:15]} 30. Rxe6+ {[%emt 0:00:14]} Kf5 {[%emt 0:00:14]} 31. Qh3+ {[%emt 0:00:21]} 1-0